[Event "*** Titled Tuesday Blitz AM"]
[Site "Chess.com"]
[Date "2020.01.07"]
[Round "9"]
[White "Saloni1299"]
[Black "Butterfly"]
[Result "0-1"]
[WhiteElo "2095"]
[BlackElo "2422"]
[TimeControl "180+2"]
[EndTime "11:05:44 PST"]
[Termination "Butterfly won by resignation"]

1. e4 {[%clk 0:03:01.9]} 1... d5 {[%clk 0:02:55.6]} 2. exd5 {[%clk 0:03:02]}
2... Qxd5 {[%clk 0:02:57.3]} 3. Nc3 {[%clk 0:03:02.5]} 3... Qd6 {[%clk
0:02:58.2]} 4. d4 {[%clk 0:03:02.6]} 4... Nf6 {[%clk 0:02:59.3]} 5. Bd3 {[%clk
0:03:03.7]} 5... c6 {[%clk 0:02:57.4]} 6. Nge2 {[%clk 0:03:04.8]} 6... g6 {[%clk
0:02:53.1]} 7. Bf4 {[%clk 0:03:05.4]} 7... Qb4 {[%clk 0:02:54]} 8. a3 {[%clk
0:03:00.4]} 8... Qb6 {[%clk 0:02:49.1]} 9. O-O {[%clk 0:02:58.1]} 9... Bg7
{[%clk 0:02:50]} 10. Na4 {[%clk 0:02:48]} 10... Qd8 {[%clk 0:02:49.6]} 11. c4
{[%clk 0:02:24]} 11... O-O {[%clk 0:02:48.9]} 12. h3 {[%clk 0:02:18.6]} 12...
Bf5 {[%clk 0:02:37]} 13. Bxf5 {[%clk 0:02:14.9]} 13... gxf5 {[%clk 0:02:38.9]}
14. Qb3 {[%clk 0:02:14.1]} 14... Qc8 {[%clk 0:02:27.3]} 15. Nc5 {[%clk
0:01:57.1]} 15... b6 {[%clk 0:02:14.7]} 16. Nd3 {[%clk 0:01:57.9]} 16... Ne4
{[%clk 0:02:12.7]} 17. f3 {[%clk 0:01:51.4]} 17... Nd6 {[%clk 0:01:55.8]} 18. c5
{[%clk 0:01:47.5]} 18... Nb5 {[%clk 0:01:51.1]} 19. Ne5 {[%clk 0:01:44.2]} 19...
bxc5 {[%clk 0:01:45.7]} 20. dxc5 {[%clk 0:01:42.2]} 20... Nd7 {[%clk 0:01:42.4]}
21. Nxd7 {[%clk 0:01:37.5]} 21... Qxd7 {[%clk 0:01:44.3]} 22. Rfd1 {[%clk
0:01:38]} 22... Qe6 {[%clk 0:01:30.4]} 23. Qxe6 {[%clk 0:01:31.6]} 23... fxe6
{[%clk 0:01:31.2]} 24. a4 {[%clk 0:01:32.5]} 24... Bxb2 {[%clk 0:01:29.5]} 25.
axb5 {[%clk 0:01:26.7]} 25... Bxa1 {[%clk 0:01:30]} 26. Rxa1 {[%clk 0:01:28.2]}
26... cxb5 {[%clk 0:01:30.6]} 27. Ra6 {[%clk 0:01:29]} 27... Rfc8 {[%clk
0:01:26.4]} 28. c6 {[%clk 0:01:29.9]} 28... b4 {[%clk 0:01:21]} 29. Nc1 {[%clk
0:01:30.4]} 29... Rd8 {[%clk 0:01:16.1]} 30. c7 {[%clk 0:01:19]} 30... Rd4
{[%clk 0:01:11.3]} 31. Rxa7 {[%clk 0:01:08.3]} 31... Rf8 {[%clk 0:01:04.4]} 32.
Be3 {[%clk 0:00:45.9]} 32... Rc4 {[%clk 0:01:04.1]} 33. Rb7 {[%clk 0:00:28.2]}
33... Rc8 {[%clk 0:00:57]} 34. Bf4 {[%clk 0:00:19.4]} 34... Kf7 {[%clk
0:00:51.9]} 35. Nb3 {[%clk 0:00:16.1]} 35... Rxf4 {[%clk 0:00:51.5]} 36. Rb8
{[%clk 0:00:14.9]} 36... Rxc7 {[%clk 0:00:52]} 37. Kf2 {[%clk 0:00:12.4]} 37...
Rc2+ {[%clk 0:00:49.9]} 38. Ke3 {[%clk 0:00:12.7]} 38... Rfc4 {[%clk 0:00:49.4]}
39. Na5 {[%clk 0:00:11.9]} 39... R4c3+ {[%clk 0:00:45.1]} 40. Kf4 {[%clk
0:00:13.1]} 40... b3 {[%clk 0:00:42.4]} 41. Rxb3 {[%clk 0:00:11.2]} 41... Rxb3
{[%clk 0:00:42.9]} 42. Nxb3 {[%clk 0:00:12.8]} 42... Rxg2 {[%clk 0:00:44.5]} 43.
Nd4 {[%clk 0:00:13.8]} 43... Kf6 {[%clk 0:00:44.7]} 44. Nc6 {[%clk 0:00:13.2]}
44... Re2 {[%clk 0:00:43.5]} 0-1

[Event "*** Titled Tuesday Blitz AM"]
[Site "Chess.com"]
[Date "2020.01.07"]
[Round "9"]
[White "Zarikovs1999"]
[Black "Zq1"]
[Result "1-0"]
[WhiteElo "2372"]
[BlackElo "2530"]
[TimeControl "180+2"]
[EndTime "11:05:49 PST"]
[Termination "Zarikovs1999 won by resignation"]

1. e4 {[%clk 0:02:56.3]} 1... c5 {[%clk 0:03:00.3]} 2. Nf3 {[%clk 0:02:56.2]}
2... d6 {[%clk 0:03:01.4]} 3. Bb5+ {[%clk 0:02:53.4]} 3... Bd7 {[%clk
0:03:01.9]} 4. Bxd7+ {[%clk 0:02:53.8]} 4... Qxd7 {[%clk 0:03:03.1]} 5. c4
{[%clk 0:02:55.3]} 5... Nf6 {[%clk 0:03:03.5]} 6. Nc3 {[%clk 0:02:54.6]} 6... e6
{[%clk 0:03:04.6]} 7. d4 {[%clk 0:02:53.3]} 7... cxd4 {[%clk 0:03:05.7]} 8. Nxd4
{[%clk 0:02:55.2]} 8... Be7 {[%clk 0:03:06.7]} 9. O-O {[%clk 0:02:54.1]} 9...
O-O {[%clk 0:03:07.3]} 10. Be3 {[%clk 0:02:39.9]} 10... Nc6 {[%clk 0:03:05.6]}
11. Qe2 {[%clk 0:02:14.7]} 11... Rac8 {[%clk 0:02:57.1]} 12. b3 {[%clk
0:02:06.2]} 12... a6 {[%clk 0:02:55]} 13. Rfd1 {[%clk 0:01:52]} 13... Nxd4
{[%clk 0:02:55.6]} 14. Bxd4 {[%clk 0:01:36]} 14... Qc6 {[%clk 0:02:53.8]} 15.
Rac1 {[%clk 0:01:31.5]} 15... Rfe8 {[%clk 0:02:52.5]} 16. f3 {[%clk 0:01:23.2]}
16... h6 {[%clk 0:02:52.7]} 17. Bf2 {[%clk 0:01:15.8]} 17... Nd7 {[%clk
0:02:46.5]} 18. Qe3 {[%clk 0:01:01.1]} 18... Bg5 {[%clk 0:02:44.8]} 19. f4
{[%clk 0:00:59.6]} 19... Bf6 {[%clk 0:02:45]} 20. Qd3 {[%clk 0:00:55.2]} 20...
Nc5 {[%clk 0:02:38.6]} 21. Qxd6 {[%clk 0:00:37.5]} 21... Bxc3 {[%clk 0:02:23.1]}
22. Qxc6 {[%clk 0:00:24]} 22... Rxc6 {[%clk 0:02:21.2]} 23. Bxc5 {[%clk
0:00:24]} 23... Rxc5 {[%clk 0:02:11.9]} 24. Rxc3 {[%clk 0:00:24.5]} 24... Rec8
{[%clk 0:02:12.9]} 25. Kf2 {[%clk 0:00:24.9]} 25... b5 {[%clk 0:02:09.6]} 26.
Rdc1 {[%clk 0:00:25.6]} 26... g5 {[%clk 0:02:07.1]} 27. g3 {[%clk 0:00:25.2]}
27... Kf8 {[%clk 0:02:05.4]} 28. Ke3 {[%clk 0:00:26]} 28... gxf4+ {[%clk
0:02:04.7]} 29. gxf4 {[%clk 0:00:26.6]} 29... Rh5 {[%clk 0:02:04.5]} 30. cxb5
{[%clk 0:00:24.2]} 30... Rxc3+ {[%clk 0:01:25.8]} 31. Rxc3 {[%clk 0:00:22.6]}
31... axb5 {[%clk 0:01:26.1]} 32. Rc2 {[%clk 0:00:21]} 32... Ke7 {[%clk
0:01:26]} 33. Kd4 {[%clk 0:00:21.8]} 33... Kd6 {[%clk 0:01:23.1]} 34. e5+ {[%clk
0:00:22.9]} 34... Kd7 {[%clk 0:01:18.4]} 35. Kc5 {[%clk 0:00:23.6]} 35... f6
{[%clk 0:01:16.2]} 36. Re2 {[%clk 0:00:20.4]} 36... Rh4 {[%clk 0:01:10.3]} 37.
Kxb5 {[%clk 0:00:17.3]} 37... Rxf4 {[%clk 0:01:09.9]} 38. exf6 {[%clk
0:00:18.4]} 38... Rxf6 {[%clk 0:01:11]} 39. a4 {[%clk 0:00:19.3]} 39... Kc7
{[%clk 0:01:06.1]} 40. Rc2+ {[%clk 0:00:15.6]} 40... Kb7 {[%clk 0:01:06.7]} 41.
a5 {[%clk 0:00:16.8]} 41... e5 {[%clk 0:01:04.7]} 42. b4 {[%clk 0:00:14.7]}
42... e4 {[%clk 0:01:02.8]} 43. Re2 {[%clk 0:00:15.5]} 43... Re6 {[%clk
0:00:59.8]} 44. Kc5 {[%clk 0:00:14.8]} 44... Re5+ {[%clk 0:00:55.3]} 45. Kd4
{[%clk 0:00:12.7]} 45... Rh5 {[%clk 0:00:53.5]} 46. Kc4 {[%clk 0:00:07.7]} 46...
e3 {[%clk 0:00:43.4]} 47. Rxe3 {[%clk 0:00:07.8]} 47... Rxh2 {[%clk 0:00:44.4]}
48. Re5 {[%clk 0:00:08.6]} 48... h5 {[%clk 0:00:42.7]} 49. Kb5 {[%clk
0:00:09.3]} 49... h4 {[%clk 0:00:41.4]} 50. a6+ {[%clk 0:00:10]} 1-0

[Event "*** Titled Tuesday Blitz AM"]
[Site "Chess.com"]
[Date "2020.01.07"]
[Round "9"]
[White "ori99"]
[Black "JSPrepz"]
[Result "0-1"]
[WhiteElo "2120"]
[BlackElo "2810"]
[TimeControl "180+2"]
[EndTime "11:05:52 PST"]
[Termination "JSPrepz won by resignation"]

1. e4 {[%clk 0:02:56.5]} 1... e5 {[%clk 0:02:55.7]} 2. Nf3 {[%clk 0:02:57]} 2...
Nc6 {[%clk 0:02:57]} 3. Bc4 {[%clk 0:02:58.2]} 3... Nf6 {[%clk 0:02:57.9]} 4. d3
{[%clk 0:02:58.7]} 4... Be7 {[%clk 0:02:59.2]} 5. c3 {[%clk 0:02:55]} 5... O-O
{[%clk 0:03:00.5]} 6. O-O {[%clk 0:02:55.5]} 6... d6 {[%clk 0:03:01.6]} 7. h3
{[%clk 0:02:54.2]} 7... Kh8 {[%clk 0:03:01.9]} 8. b4 {[%clk 0:02:53.1]} 8... a6
{[%clk 0:03:02.6]} 9. a4 {[%clk 0:02:50.9]} 9... Ng8 {[%clk 0:03:03.8]} 10. Re1
{[%clk 0:02:49.4]} 10... f5 {[%clk 0:03:04.1]} 11. Nbd2 {[%clk 0:02:48.6]} 11...
Nf6 {[%clk 0:03:03.5]} 12. Ng5 {[%clk 0:02:46.5]} 12... Qe8 {[%clk 0:03:04]} 13.
Qb3 {[%clk 0:02:43.5]} 13... h6 {[%clk 0:03:02.9]} 14. Bf7 {[%clk 0:02:39.3]}
14... Qd8 {[%clk 0:03:03.5]} 15. Ne6 {[%clk 0:02:38.2]} 15... Bxe6 {[%clk
0:03:03.9]} 16. Bxe6 {[%clk 0:02:38.6]} 16... fxe4 {[%clk 0:03:00.9]} 17. dxe4
{[%clk 0:02:36.3]} 17... Nh5 {[%clk 0:03:01.8]} 18. g3 {[%clk 0:02:34.6]} 18...
Qe8 {[%clk 0:02:31]} 19. Nf1 {[%clk 0:02:30.4]} 19... Nd8 {[%clk 0:02:21.9]} 20.
Bf5 {[%clk 0:02:26.4]} 20... Nf6 {[%clk 0:02:10.2]} 21. h4 {[%clk 0:02:24.8]}
21... Qh5 {[%clk 0:02:10.1]} 22. Ne3 {[%clk 0:02:22.5]} 22... Qf3 {[%clk
0:02:03.4]} 23. Qd1 {[%clk 0:02:20.3]} 23... Qxd1 {[%clk 0:02:04.3]} 24. Rxd1
{[%clk 0:02:17.6]} 24... Rg8 {[%clk 0:02:03.7]} 25. Bg6 {[%clk 0:02:14.8]} 25...
Rf8 {[%clk 0:02:04.2]} 26. f3 {[%clk 0:02:13.3]} 26... Nc6 {[%clk 0:01:59.4]}
27. Kg2 {[%clk 0:02:10.7]} 27... Bd8 {[%clk 0:01:56.2]} 28. Bf5 {[%clk
0:02:07.8]} 28... Ne7 {[%clk 0:01:57.5]} 29. Bh3 {[%clk 0:02:08.2]} 29... Nc6
{[%clk 0:01:57.4]} 30. Ba3 {[%clk 0:02:01.6]} 30... b5 {[%clk 0:01:54.2]} 31.
Bc1 {[%clk 0:01:45.1]} 31... Be7 {[%clk 0:01:54.8]} 32. Bd2 {[%clk 0:01:35.6]}
32... Rfb8 {[%clk 0:01:52.5]} 33. Ra2 {[%clk 0:01:31.6]} 33... Rf8 {[%clk
0:01:32.1]} 34. Rda1 {[%clk 0:01:26]} 34... Rab8 {[%clk 0:01:33.5]} 35. axb5
{[%clk 0:01:21.6]} 35... axb5 {[%clk 0:01:35.4]} 36. Ra6 {[%clk 0:01:22.5]}
36... Nd8 {[%clk 0:01:36.6]} 37. Ra7 {[%clk 0:01:20.2]} 37... Ne8 {[%clk
0:01:10.6]} 38. Nd5 {[%clk 0:01:17.6]} 38... Bf6 {[%clk 0:01:12]} 39. Nxc7
{[%clk 0:01:08.8]} 39... Nc6 {[%clk 0:01:13.4]} 40. Ne6 {[%clk 0:01:05.5]} 40...
Nxa7 {[%clk 0:01:07.6]} 41. Nxf8 {[%clk 0:01:03]} 41... Nc6 {[%clk 0:01:09.5]}
42. Ra6 {[%clk 0:00:58.9]} 42... Ne7 {[%clk 0:01:10.2]} 43. Nd7 {[%clk
0:00:55.8]} 43... Rd8 {[%clk 0:01:11.3]} 44. Be3 {[%clk 0:00:50.1]} 44... Kh7
{[%clk 0:01:07.8]} 45. Bb6 {[%clk 0:00:46.8]} 45... Nc7 {[%clk 0:01:08.8]} 46.
Bxc7 {[%clk 0:00:43.4]} 46... Re8 {[%clk 0:01:10.7]} 47. Rxd6 {[%clk 0:00:39.1]}
47... Ng8 {[%clk 0:01:11.3]} 48. Nxf6+ {[%clk 0:00:32.3]} 48... Nxf6 {[%clk
0:01:13.2]} 49. Bb6 {[%clk 0:00:32.3]} 49... Ra8 {[%clk 0:01:14.3]} 50. Bd8
{[%clk 0:00:29.9]} 50... Ra2+ {[%clk 0:01:15]} 51. Kf1 {[%clk 0:00:30.6]} 51...
Ne8 {[%clk 0:01:16.9]} 52. Re6 {[%clk 0:00:27.7]} 52... Ra1+ {[%clk 0:01:17.9]}
53. Ke2 {[%clk 0:00:27.4]} 53... Ra2+ {[%clk 0:01:19.8]} 54. Kd3 {[%clk
0:00:27.5]} 54... Nf6 {[%clk 0:01:21.7]} 55. Bxf6 {[%clk 0:00:26.9]} 55... gxf6
{[%clk 0:01:23.6]} 56. Rxf6 {[%clk 0:00:27.7]} 56... Rf2 {[%clk 0:01:25.5]} 57.
Bf5+ {[%clk 0:00:27.4]} 57... Kg7 {[%clk 0:01:26.9]} 58. Rg6+ {[%clk 0:00:26.8]}
58... Kf7 {[%clk 0:01:28.2]} 59. Ke3 {[%clk 0:00:24.9]} 59... Rc2 {[%clk
0:01:29.1]} 60. Rxh6 {[%clk 0:00:25.2]} 60... Rxc3+ {[%clk 0:01:30.5]} 61. Kf2
{[%clk 0:00:25.7]} 61... Rc2+ {[%clk 0:01:31.9]} 62. Kg1 {[%clk 0:00:26.1]}
62... Rc3 {[%clk 0:01:33.8]} 63. Kg2 {[%clk 0:00:26.5]} 0-1

[Event "*** Titled Tuesday Blitz AM"]
[Site "Chess.com"]
[Date "2020.01.07"]
[Round "9"]
[White "DanielNaroditsky"]
[Black "Sethu0025"]
[Result "0-1"]
[WhiteElo "3064"]
[BlackElo "2819"]
[TimeControl "180+2"]
[EndTime "11:05:58 PST"]
[Termination "Sethu0025 won by resignation"]

1. b3 {[%clk 0:02:58.4]} 1... d5 {[%clk 0:02:59.5]} 2. Bb2 {[%clk 0:02:58.6]}
2... c5 {[%clk 0:03:00.8]} 3. e3 {[%clk 0:02:59.4]} 3... Nc6 {[%clk 0:03:01.4]}
4. Bb5 {[%clk 0:03:00.5]} 4... e6 {[%clk 0:03:02.2]} 5. Nf3 {[%clk 0:02:58.6]}
5... Ne7 {[%clk 0:03:03]} 6. d4 {[%clk 0:02:37.6]} 6... a6 {[%clk 0:03:02.8]} 7.
Bxc6+ {[%clk 0:02:30.7]} 7... Nxc6 {[%clk 0:03:03.5]} 8. dxc5 {[%clk 0:02:32.6]}
8... Bxc5 {[%clk 0:02:58.5]} 9. O-O {[%clk 0:02:29.6]} 9... O-O {[%clk 0:02:58]}
10. Nbd2 {[%clk 0:02:31.3]} 10... Qe7 {[%clk 0:02:49.4]} 11. a3 {[%clk
0:02:29.9]} 11... Rd8 {[%clk 0:02:46.6]} 12. b4 {[%clk 0:02:30.8]} 12... Ba7
{[%clk 0:02:47]} 13. Nb3 {[%clk 0:02:21.5]} 13... e5 {[%clk 0:02:43.9]} 14. h3
{[%clk 0:02:22.7]} 14... f6 {[%clk 0:02:43.8]} 15. Qe2 {[%clk 0:02:22.6]} 15...
Be6 {[%clk 0:02:44.5]} 16. Rfd1 {[%clk 0:02:21.5]} 16... Rac8 {[%clk 0:02:44.7]}
17. Rac1 {[%clk 0:02:23.2]} 17... b5 {[%clk 0:02:34.4]} 18. Ne1 {[%clk
0:02:22.7]} 18... d4 {[%clk 0:02:12.1]} 19. exd4 {[%clk 0:02:18.2]} 19... Bc4
{[%clk 0:01:45.8]} 20. Qe4 {[%clk 0:02:13.4]} 20... Bd5 {[%clk 0:01:41.6]} 21.
Qg4 {[%clk 0:01:59.2]} 21... Be6 {[%clk 0:01:31.8]} 22. Qe2 {[%clk 0:02:00]}
22... Bxb3 {[%clk 0:01:21.5]} 23. cxb3 {[%clk 0:02:01]} 23... Nxd4 {[%clk
0:01:18.5]} 24. Rxd4 {[%clk 0:01:52]} 24... Bxd4 {[%clk 0:01:18.4]} 25. Rxc8
{[%clk 0:01:52.8]} 25... Rxc8 {[%clk 0:01:19]} 26. Bxd4 {[%clk 0:01:54.4]} 26...
Qf7 {[%clk 0:01:18.6]} 27. Bc5 {[%clk 0:01:49.7]} 27... Qxb3 {[%clk 0:01:19.3]}
28. Qd2 {[%clk 0:01:37.4]} 28... Qe6 {[%clk 0:01:13.9]} 29. Nf3 {[%clk
0:01:36.5]} 29... Kf7 {[%clk 0:01:08.3]} 30. Nh2 {[%clk 0:00:59.8]} 30... Rc7
{[%clk 0:01:00.6]} 31. Nf1 {[%clk 0:00:58.1]} 31... Rd7 {[%clk 0:01:01.2]} 32.
Qc2 {[%clk 0:00:56]} 32... e4 {[%clk 0:00:57.5]} 33. Ne3 {[%clk 0:00:51.8]}
33... Rd3 {[%clk 0:00:55.7]} 34. Qe2 {[%clk 0:00:45.3]} 34... Kg6 {[%clk
0:00:44]} 35. Nc2 {[%clk 0:00:36.3]} 35... f5 {[%clk 0:00:32.8]} 36. Ne3 {[%clk
0:00:24.1]} 36... Rxa3 {[%clk 0:00:30.5]} 37. g3 {[%clk 0:00:23.5]} 37... Qa2
{[%clk 0:00:25.5]} 38. Nc2 {[%clk 0:00:05.4]} 38... Rc3 {[%clk 0:00:22.3]} 39.
Qd2 {[%clk 0:00:05.5]} 39... Qxc2 {[%clk 0:00:18]} 40. Qd6+ {[%clk 0:00:06.4]}
40... Kh5 {[%clk 0:00:17.2]} 41. g4+ {[%clk 0:00:04.3]} 41... Kh4 {[%clk
0:00:10.3]} 42. Qg3+ {[%clk 0:00:03.8]} 42... Rxg3+ {[%clk 0:00:10.6]} 43. fxg3+
{[%clk 0:00:04.4]} 43... Kxg3 {[%clk 0:00:12.1]} 0-1

[Event "*** Titled Tuesday Blitz AM"]
[Site "Chess.com"]
[Date "2020.01.07"]
[Round "9"]
[White "TregubovP"]
[Black "arminmusovic"]
[Result "1/2-1/2"]
[WhiteElo "2607"]
[BlackElo "2513"]
[TimeControl "180+2"]
[EndTime "11:06:16 PST"]
[Termination "Game drawn by repetition"]

1. e4 {[%clk 0:03:01.9]} 1... c6 {[%clk 0:02:59.6]} 2. c4 {[%clk 0:03:00.2]}
2... d5 {[%clk 0:03:01.5]} 3. exd5 {[%clk 0:03:00.9]} 3... cxd5 {[%clk
0:03:03.4]} 4. cxd5 {[%clk 0:03:01.6]} 4... a6 {[%clk 0:03:05.1]} 5. Nc3 {[%clk
0:03:01.6]} 5... Nf6 {[%clk 0:03:06.4]} 6. Nf3 {[%clk 0:02:58.7]} 6... Nxd5
{[%clk 0:03:04.9]} 7. Bc4 {[%clk 0:02:57.7]} 7... Nxc3 {[%clk 0:02:57]} 8. dxc3
{[%clk 0:02:54.8]} 8... Qxd1+ {[%clk 0:02:57.3]} 9. Kxd1 {[%clk 0:02:56.1]} 9...
Nc6 {[%clk 0:02:57.1]} 10. h3 {[%clk 0:02:48.8]} 10... Bf5 {[%clk 0:02:54]} 11.
Ke2 {[%clk 0:02:34.4]} 11... e6 {[%clk 0:02:46.8]} 12. Nh4 {[%clk 0:02:29.4]}
12... Ne5 {[%clk 0:02:46]} 13. Nxf5 {[%clk 0:02:03.4]} 13... Nxc4 {[%clk
0:02:46.5]} 14. Nd4 {[%clk 0:02:00.9]} 14... Bc5 {[%clk 0:02:39.1]} 15. Rd1
{[%clk 0:02:01.2]} 15... Ke7 {[%clk 0:02:34.9]} 16. b3 {[%clk 0:02:02.2]} 16...
Nd6 {[%clk 0:02:31.1]} 17. Be3 {[%clk 0:02:02.1]} 17... Rac8 {[%clk 0:02:31]}
18. c4 {[%clk 0:02:02.5]} 18... Rhd8 {[%clk 0:02:27.2]} 19. Rd3 {[%clk
0:02:03.3]} 19... e5 {[%clk 0:02:21.7]} 20. Nc2 {[%clk 0:02:03.7]} 20... Ne4
{[%clk 0:01:58.8]} 21. Rad1 {[%clk 0:01:56.4]} 21... Bxe3 {[%clk 0:01:41.5]} 22.
Nxe3 {[%clk 0:01:56]} 22... Rxd3 {[%clk 0:01:40]} 23. Rxd3 {[%clk 0:01:55.2]}
23... Ke6 {[%clk 0:01:34.8]} 24. f3 {[%clk 0:01:42.2]} 24... Nf6 {[%clk
0:01:14.9]} 25. g4 {[%clk 0:01:37]} 25... g6 {[%clk 0:01:03.5]} 26. g5 {[%clk
0:01:14.7]} 26... e4 {[%clk 0:01:05]} 27. Rd4 {[%clk 0:01:10.9]} 27... exf3+
{[%clk 0:01:04.6]} 28. Kxf3 {[%clk 0:01:12.1]} 28... Nd7 {[%clk 0:00:50.6]} 29.
Nd5 {[%clk 0:01:04.1]} 29... f5 {[%clk 0:00:42.3]} 30. gxf6 {[%clk 0:00:55.2]}
30... Nxf6 {[%clk 0:00:43.1]} 31. Nxf6 {[%clk 0:00:55.4]} 31... Kxf6 {[%clk
0:00:44.6]} 32. Rd7 {[%clk 0:00:56.5]} 32... b5 {[%clk 0:00:46.1]} 33. cxb5
{[%clk 0:00:45]} 33... axb5 {[%clk 0:00:48]} 34. Rxh7 {[%clk 0:00:45]} 34... Ra8
{[%clk 0:00:49.2]} 35. Rb7 {[%clk 0:00:44.3]} 35... Rxa2 {[%clk 0:00:29.6]} 36.
Rb6+ {[%clk 0:00:45.2]} 36... Kg5 {[%clk 0:00:28.9]} 37. Rxb5+ {[%clk
0:00:46.3]} 37... Kh4 {[%clk 0:00:27.9]} 38. Rb6 {[%clk 0:00:47.5]} 38... Kh5
{[%clk 0:00:26.4]} 39. Rb8 {[%clk 0:00:42.5]} 39... Rb2 {[%clk 0:00:19.5]} 40.
Kg3 {[%clk 0:00:36.8]} 40... Rc2 {[%clk 0:00:17.2]} 41. Rh8+ {[%clk 0:00:25.3]}
41... Kg5 {[%clk 0:00:18]} 42. h4+ {[%clk 0:00:26.5]} 42... Kf6 {[%clk 0:00:19]}
43. Rf8+ {[%clk 0:00:27.4]} 43... Kg7 {[%clk 0:00:20.3]} 44. Rb8 {[%clk
0:00:28.1]} 44... Rc3+ {[%clk 0:00:19.8]} 45. Kg4 {[%clk 0:00:28.3]} 45... Rc1
{[%clk 0:00:21.4]} 46. b4 {[%clk 0:00:24.9]} 46... Kh6 {[%clk 0:00:20.5]} 47. b5
{[%clk 0:00:11.8]} 47... Rc4+ {[%clk 0:00:21.6]} 48. Kg3 {[%clk 0:00:12.5]}
48... Kg7 {[%clk 0:00:21.9]} 49. b6 {[%clk 0:00:13]} 49... Rb4 {[%clk
0:00:22.1]} 50. Rb7+ {[%clk 0:00:11.2]} 50... Kh6 {[%clk 0:00:22.5]} 51. Rb8
{[%clk 0:00:12.1]} 51... Kg7 {[%clk 0:00:23.9]} 52. Kh3 {[%clk 0:00:12.6]} 52...
Kh7 {[%clk 0:00:23.9]} 53. Kg3 {[%clk 0:00:13.5]} 53... Kg7 {[%clk 0:00:25.2]}
1/2-1/2

[Event "*** Titled Tuesday Blitz AM"]
[Site "Chess.com"]
[Date "2020.01.07"]
[Round "9"]
[White "OparinGrigoriy"]
[Black "Parhamov"]
[Result "0-1"]
[WhiteElo "3036"]
[BlackElo "3083"]
[TimeControl "180+2"]
[EndTime "11:06:19 PST"]
[Termination "Parhamov won by resignation"]

1. Nf3 {[%clk 0:03:01.9]} 1... Nf6 {[%clk 0:03:00.3]} 2. g3 {[%clk 0:03:03.3]}
2... g6 {[%clk 0:02:59.5]} 3. Bg2 {[%clk 0:03:04.7]} 3... Bg7 {[%clk 0:03:00.5]}
4. c4 {[%clk 0:03:05.8]} 4... O-O {[%clk 0:02:59.6]} 5. d4 {[%clk 0:03:07.4]}
5... d6 {[%clk 0:02:59.1]} 6. O-O {[%clk 0:03:08.4]} 6... Nc6 {[%clk 0:03:00]}
7. Nc3 {[%clk 0:03:09.2]} 7... e5 {[%clk 0:02:59.8]} 8. dxe5 {[%clk 0:03:11.1]}
8... dxe5 {[%clk 0:02:59.2]} 9. Bg5 {[%clk 0:03:11.9]} 9... Be6 {[%clk
0:02:29.9]} 10. Qa4 {[%clk 0:03:12.8]} 10... Qc8 {[%clk 0:02:29.5]} 11. Nd2
{[%clk 0:03:11.7]} 11... Nd4 {[%clk 0:02:23.4]} 12. Rac1 {[%clk 0:03:08.5]}
12... Nd7 {[%clk 0:02:21.6]} 13. Qa3 {[%clk 0:02:26.1]} 13... Re8 {[%clk
0:02:18.4]} 14. b3 {[%clk 0:02:10.1]} 14... h6 {[%clk 0:02:18.8]} 15. Be3 {[%clk
0:02:08.4]} 15... Nf5 {[%clk 0:02:20.1]} 16. Nd1 {[%clk 0:02:00]} 16... a5
{[%clk 0:02:20.9]} 17. Ne4 {[%clk 0:01:53.1]} 17... Bf8 {[%clk 0:02:21.6]} 18.
Qb2 {[%clk 0:01:53.8]} 18... Nxe3 {[%clk 0:02:21.8]} 19. Nxe3 {[%clk 0:01:55.7]}
19... f5 {[%clk 0:02:23.2]} 20. Nc3 {[%clk 0:01:54.8]} 20... c6 {[%clk
0:02:23.5]} 21. Na4 {[%clk 0:01:47.5]} 21... Qc7 {[%clk 0:02:24.8]} 22. c5
{[%clk 0:01:48.3]} 22... e4 {[%clk 0:02:24.1]} 23. Rfd1 {[%clk 0:01:45.2]} 23...
Rad8 {[%clk 0:02:25.2]} 24. Qc2 {[%clk 0:01:36.9]} 24... h5 {[%clk 0:02:26.3]}
25. h4 {[%clk 0:01:25.6]} 25... Ne5 {[%clk 0:02:26.5]} 26. Rxd8 {[%clk
0:01:18.2]} 26... Rxd8 {[%clk 0:02:27.9]} 27. Rd1 {[%clk 0:01:19.9]} 27... Bh6
{[%clk 0:02:29]} 28. Rxd8+ {[%clk 0:01:12.1]} 28... Qxd8 {[%clk 0:02:30.9]} 29.
Qd1 {[%clk 0:01:13.5]} 29... Qxd1+ {[%clk 0:02:31.1]} 30. Nxd1 {[%clk
0:01:15.4]} 30... Bd2 {[%clk 0:02:32.1]} 31. f3 {[%clk 0:00:59.6]} 31... exf3
{[%clk 0:02:27.8]} 32. Bxf3 {[%clk 0:01:01.5]} 32... Nd7 {[%clk 0:02:12.7]} 33.
e4 {[%clk 0:00:32.8]} 33... f4 {[%clk 0:02:13]} 34. gxf4 {[%clk 0:00:31.5]}
34... Bxf4 {[%clk 0:02:14.9]} 35. Kg2 {[%clk 0:00:32]} 35... Be5 {[%clk
0:02:11.7]} 36. Nf2 {[%clk 0:00:30.5]} 36... Bd4 {[%clk 0:02:10.6]} 37. Nd3
{[%clk 0:00:32]} 37... Be3 {[%clk 0:02:10.3]} 38. Be2 {[%clk 0:00:31]} 38... Kg7
{[%clk 0:02:07.7]} 39. Kf3 {[%clk 0:00:32]} 39... Bd4 {[%clk 0:02:04.8]} 40. Kg3
{[%clk 0:00:29.3]} 40... Kf6 {[%clk 0:02:05.6]} 41. Bf1 {[%clk 0:00:29]} 41...
Bg4 {[%clk 0:02:04.7]} 42. Kf4 {[%clk 0:00:19.1]} 42... Ne5 {[%clk 0:02:00]} 43.
Kg3 {[%clk 0:00:14.9]} 43... Nxd3 {[%clk 0:01:50.5]} 44. Bxd3 {[%clk 0:00:16.8]}
44... g5 {[%clk 0:01:52]} 45. hxg5+ {[%clk 0:00:17.6]} 45... Kxg5 {[%clk
0:01:53.9]} 46. Nb6 {[%clk 0:00:17.8]} 46... h4+ {[%clk 0:01:52]} 47. Kh2 {[%clk
0:00:18.7]} 47... Bxc5 {[%clk 0:01:41.4]} 48. Nc4 {[%clk 0:00:19.9]} 48... b5
{[%clk 0:01:42.9]} 49. Nxa5 {[%clk 0:00:19.6]} 49... Bd6+ {[%clk 0:01:44.3]} 50.
Kg1 {[%clk 0:00:21.1]} 50... h3 {[%clk 0:01:40.2]} 51. Bf1 {[%clk 0:00:22.3]}
51... Kf4 {[%clk 0:00:53.7]} 52. Nxc6 {[%clk 0:00:12.1]} 52... Kg3 {[%clk
0:00:54.7]} 53. Bxh3 {[%clk 0:00:06.7]} 53... Bxh3 {[%clk 0:00:55.8]} 54. b4
{[%clk 0:00:08.2]} 54... Bf4 {[%clk 0:00:56.5]} 0-1